bitfinex/quotes_ETHUSD_20250904
["timestamp","ask_amount","ask_price","bid_price","bid_amount"]
[1756994984425,0.1152,4343.3,4343.1,0.09385579]
[1756994985097,1.0862,4343.3,4343.1,0.09385579]
[1756994985318,0.6549,4343.3,4343.1,0.09385579]
[1756994985524,0.1152,4343.3,4343.1,0.09385579]
[1756994985820,0.1144,4343.3,4343.1,0.09385579]
[1756994986025,2.3024498,4343.2,4343.1,0.09385579]
[1756994986212,0.80846488,4343.3,4343.1,0.09385579]
[1756994986419,0.1144,4343.3,4343.1,0.09385579]
[1756994987021,4.524,4343.5,4343.1,0.09385579]
[1756994987424,0.1152,4343.3,4343.1,0.09385579]
[1756994988325,3.5945522,4343.2,4343.1,0.09385579]
[1756994988501,3.5715498,4343.2,4343.1,0.09385579]
[1756994988699,4.62516019,4343.2,4343.1,0.09385579]
[1756994989513,7.62516019,4343.2,4343.1,0.09385579]
[1756994989723,7.62516019,4343.2,4342.4,0.003]
[1756994989724,2.30282095,4342.5,4342.4,0.003]
[1756994989925,6.82582095,4342.5,4342.4,0.003]
[1756994990102,7.23912095,4342.5,4342.4,0.003]
[1756994990298,5.80808683,4342.5,4341.8,0.025]
[1756994990537,17.86097919,4341.9,4341.8,0.025]
[1756994990738,17.86097919,4341.9,4340.8,0.025]
[1756994990739,2.30319222,4341.8,4340.8,0.025]
[1756994990957,15.44264002,4339.9,4338.8,0.025]
[1756994991266,7.7862664,4339.8,4338.8,0.025]
[1756994991397,4.523,4339.7,4338.8,0.025]
[1756994991608,0.1152,4339.3,4338.8,0.025]
[1756994991837,4.6382,4339.3,4338.8,0.025]
[1756994992041,5.6092,4339.3,4338.8,0.025]
[1756994992214,13.18162713,4339.3,4338.8,0.025]
[1756994992419,17.74737163,4338.9,4338.8,0.025]
[1756994992729,17.74737163,4338.9,4337.8,0.025]
[1756994992730,3.0,4338.8,4337.8,0.025]
[1756994992945,0.1152,4337.9,4337.8,0.025]
[1756994993258,0.5397,4340.1,4337.8,0.025]
[1756994993425,0.1152,4338.9,4338.2,0.1152]
[1756994993608,0.1152,4338.9,4338.8,2.30478473]
[1756994993811,0.1152,4338.9,4338.2,0.1152]
[1756994994054,3.098,4339.1,4337.8,0.025]
[1756994994055,15.44264002,4338.3,4337.8,0.025]
[1756994994272,4.5672664,4338.2,4337.8,0.025]
[1756994994456,4.5672664,4338.2,4336.5,0.25]
[1756994994457,0.792,4338.1,4336.5,0.25]
[1756994994752,15.44264002,4337.3,4336.5,0.25]
[1756994994937,4.547,4337.2,4336.5,0.25]
[1756994995116,1.697,4337.4,4336.5,0.25]
[1756994995321,0.4313,4340.1,4336.9,0.9545]
[1756994995520,0.356,4340.4,4337.6,0.792]
[1756994995766,1.3500024,4340.3,4337.7,2.2103]
[1756994995973,1.697,4340.7,4337.9,0.792]
[1756994996123,0.0230024,4340.6,4338.1,0.792]
[1756994996324,0.72500024,4340.6,4338.4,2.30499723]
[1756994996553,15.44264002,4339.7,4338.2,0.5133]
[1756994996726,4.5860024,4339.6,4337.5,0.9545]
[1756994996927,15.44264002,4339.1,4337.5,0.9545]
[1756994997131,0.4313,4339.5,4337.5,0.9545]
[1756994997132,0.0230024,4339.0,4337.5,0.9545]
[1756994997429,0.66913,4339.4,4337.4,2.30552531]
[1756994997633,0.025,4339.8,4337.6,0.9545]
[1756994997831,0.025,4339.8,4337.0,0.26995585]
[1756994997832,15.44264002,4339.3,4336.8,0.025]
[1756994998030,15.44264002,4337.0,4336.8,0.025]
[1756994998262,6.91079686,4336.9,4336.8,0.025]
[1756994998582,7.85879446,4336.9,4336.8,0.025]
[1756994998866,2.30608257,4336.4,4333.8,0.025]
[1756994999078,17.74896627,4335.9,4333.8,0.025]
[1756994999271,17.13964002,4335.9,4333.8,0.025]
[1756994999476,4.39620797,4336.9,4334.5,0.9545]
[1756994999658,7.6060024,4336.8,4335.4,0.09557814]
[1756994999860,7.6060024,4336.8,4335.4,2.40215666]
[1756994999861,4.581,4336.7,4335.4,2.40215666]
[1756995000068,15.44264002,4336.0,4335.4,0.09557814]
[1756995000240,1.7210024,4335.9,4335.4,0.09557814]
[1756995000447,0.9777,4337.3,4335.5,2.30653903]
[1756995000653,0.80372183,4337.2,4335.4,0.09557814]
[1756995000984,15.44264002,4337.0,4335.4,0.09557814]
[1756995001191,0.0230024,4336.9,4335.4,0.09557814]
[1756995001404,4.596,4336.8,4335.4,0.09557814]
[1756995001562,15.44264002,4336.3,4335.4,0.09557814]
[1756995001751,7.6310024,4336.2,4335.4,0.09557814]
[1756995001951,0.4524,4336.1,4335.4,0.09557814]
[1756995002162,6.556034,4336.0,4335.4,0.09557814]
[1756995002484,2.30653903,4335.5,4335.4,0.09557814]
[1756995002670,3.0,4335.8,4335.4,0.09557814]
[1756995002874,4.616,4335.5,4335.4,0.09557814]
[1756995003190,0.40041839,4335.5,4335.4,0.09557814]
[1756995003352,0.5253,4335.5,4335.4,0.09557814]
[1756995003547,4.614,4335.5,4335.4,0.09557814]
[1756995003751,1.698,4335.9,4335.4,0.09557814]
[1756995003986,0.05,4336.8,4335.8,2.30637787]
[1756995004214,0.05,4336.8,4335.9,0.9322]
[1756995004421,0.05,4336.8,4335.9,0.4858]
[1756995004576,0.05,4336.8,4336.0,0.4464]
[1756995004771,0.025,4337.8,4336.7,0.1152]
[1756995005076,0.025,4337.8,4337.5,0.1152]
[1756995005302,0.1152,4337.6,4337.0,0.1152]
[1756995005498,0.025,4337.8,4337.7,2.3053692]
[1756995005713,1.45,4340.4,4338.5,2.3049441]
[1756995005913,0.1152,4340.2,4338.7,0.1152]
[1756995006228,0.72500024,4340.6,4338.7,0.1152]
[1756995006229,0.1152,4340.6,4339.7,2.41950674]
[1756995006512,0.1152,4340.9,4339.7,3.35170674]
[1756995006818,1e-08,4340.8,4340.7,2.30377588]
[1756995006986,0.025,4341.8,4340.7,2.1818016]
[1756995007185,0.025,4341.8,4340.8,0.9322]
[1756995007375,0.0230024,4341.7,4340.1,0.4858]
[1756995007577,15.44264002,4341.5,4339.2,0.4858]
[1756995007904,8.6347024,4341.4,4338.4,0.4858]
[1756995008082,15.44264002,4340.9,4338.4,0.4858]
[1756995008283,0.025,4341.8,4339.6,15.44264002]
[1756995008608,0.734,4341.7,4339.7,0.9322]
[1756995009113,3.0230024,4341.7,4338.9,0.9322]
[1756995009302,3.0,4341.5,4338.9,0.9322]
[1756995009503,1.39577024,4341.4,4339.0,0.95524678]
[1756995009704,0.025,4341.8,4339.9,2.30419163]
[1756995009905,0.025,4341.8,4340.6,2.30378224]
[1756995010226,0.025,4341.8,4341.0,2.30361585]
[1756995010514,0.025,4341.8,4341.1,1.16256158]
[1756995010702,0.0230024,4341.7,4340.4,1.698]
[1756995010902,0.025,4341.8,4340.5,1.7242]
[1756995011113,0.025,4341.8,4340.9,2.30362434]
[1756995011291,0.0242,4341.8,4340.5,0.9322]
[1756995011492,0.0242,4341.8,4340.6,0.49341085]
[1756995011808,2.30371973,4340.9,4339.7,0.9322]
[1756995011988,2.30338272,4341.5,4339.7,3.18629317]
[1756995012184,2.572,4341.1,4338.8,0.025]
[1756995012386,2.32663372,4341.0,4339.0,0.4858]
[1756995012586,0.40246337,4340.9,4339.1,0.02304625]
[1756995012788,1.698,4341.2,4339.3,0.792]
[1756995013020,1.698,4341.2,4338.8,0.025]
[1756995013021,1.698,4342.0,4341.4,2.30337999]
[1756995013198,0.025,4342.8,4340.2,3.09602109]
[1756995013534,0.025,4342.8,4341.7,2.30324527]
[1756995013826,2.30287911,4342.4,4340.5,4.656]
[1756995014041,2.30310245,4342.0,4340.6,0.6354]
[1756995014331,2.30304066,4342.1,4340.6,0.6354]
[1756995014490,2.32608998,4342.0,4340.6,0.6354]
[1756995014692,2.32608998,4342.0,4340.5,0.4464]
[1756995014693,0.0230024,4342.0,4340.5,0.4464]
[1756995015039,1.698,4342.7,4340.5,0.46943882]
[1756995015189,1.698,4342.7,4341.4,2.30340443]
[1756995015542,3.0,4341.6,4338.9,0.4858]
[1756995015830,6.3910024,4341.5,4339.0,0.4464]
[1756995016039,3.07029024,4341.5,4339.1,0.4858]
[1756995016187,2.30351762,4341.2,4339.2,0.792]
[1756995016387,3.07029024,4341.5,4339.4,3.09646605]
[1756995016621,0.1152,4340.8,4340.2,0.1152]
[1756995016952,0.1152,4340.8,4339.3,0.9322]
[1756995016953,0.0230024,4340.7,4339.0,2.30467849]
[1756995017169,2.41933431,4340.1,4338.9,1.698]
[1756995017466,0.4524,4340.6,4338.8,0.025]
[1756995017467,2.30430202,4339.8,4338.8,0.025]
[1756995017620,0.1152,4339.1,4338.8,0.025]
[1756995017966,2.30334953,4341.6,4338.8,0.025]
[1756995017967,0.1152,4339.9,4339.0,0.1152]
[1756995018166,4.1824,4340.5,4339.0,0.1152]
[1756995018371,0.1152,4339.9,4339.0,0.1152]
[1756995018578,9.362,4341.7,4339.1,0.9322]
[1756995018868,0.1152,4341.1,4340.8,2.30368893]
[1756995019033,0.1152,4341.1,4340.4,0.1152]
[1756995019451,0.0242,4341.8,4341.7,2.30324527]
[1756995019769,0.0242,4341.8,4341.7,0.1152]
[1756995019946,0.0242,4341.8,4340.7,1.698]
[1756995020260,0.0242,4341.8,4340.5,0.9322]
[1756995020261,0.1152,4341.5,4340.9,0.1152]
[1756995020467,0.0242,4341.8,4341.7,2.30324527]
[1756995020971,0.025,4342.8,4342.7,2.3027149]
[1756995021268,0.025,4342.8,4342.4,2.30285842]
[1756995021467,0.025,4342.8,4341.7,0.4464]
[1756995021627,0.0230024,4342.7,4341.0,0.4464]
[1756995021827,0.0230024,4342.7,4340.7,0.4858]
[1756995021828,0.4524,4342.6,4340.7,0.4858]
[1756995022030,0.4524,4342.6,4340.2,0.4464]
[1756995022031,0.0230024,4342.5,4340.8,2.30371133]
[1756995022229,0.78274904,4342.4,4340.9,2.30362361]
[1756995022536,0.78274904,4342.4,4340.0,0.9322]
[1756995022537,0.78274904,4342.4,4341.4,2.30339347]
[1756995022768,0.33034904,4342.4,4340.7,2.30377588]
[1756995023067,0.025,4342.8,4340.8,0.9322]
[1756995023235,0.025,4342.8,4341.0,0.792]
[1756995023440,0.025,4342.8,4342.7,2.3027149]
[1756995023660,0.025,4342.8,4342.7,3.2349149]
[1756995023831,0.025,4342.8,4342.7,2.7885149]
[1756995024022,0.025,4342.8,4342.7,3.25794204]
[1756995024224,1e-08,4342.8,4342.7,4.6060159]
[1756995024427,1e-08,4342.8,4342.7,4.58298876]
[1756995024679,1e-08,4342.8,4342.7,7.58298876]
[1756995024966,1e-08,4343.8,4343.7,2.30218477]
[1756995025463,1e-08,4343.8,4342.8,0.9322]
[1756995025628,0.9777,4343.7,4342.1,0.4858]
[1756995025828,0.0230024,4343.6,4342.7,2.30270958]
[1756995026137,1e-08,4343.8,4342.9,2.30260885]
[1756995026461,1e-08,4343.8,4343.7,2.30218477]
[1756995027064,1e-08,4343.8,4343.2,2.30240278]
[1756995027272,1e-08,4343.8,4342.4,0.4858]
[1756995027425,2.30214173,4343.8,4342.7,2.30269292]
[1756995027631,1.95021657,4343.7,4341.8,0.4858]
[1756995027950,1.95021657,4343.7,4341.4,1.697]
[1756995027951,2.45251417,4343.7,4341.4,1.697]
[1756995028152,8.6847,4343.6,4341.4,1.697]
[1756995028349,4.709,4343.5,4341.4,1.697]
[1756995028559,1e-08,4343.8,4341.5,1.1019]
[1756995028741,1e-08,4343.8,4341.6,5.3263313]
[1756995028927,1e-08,4343.8,4342.6,2.30275873]
[1756995029134,1e-08,4343.8,4341.6,0.9322]
[1756995029337,2.30221704,4343.7,4342.8,0.025]
[1756995029544,0.23022171,4343.6,4342.8,0.025]
[1756995029746,1e-08,4343.8,4342.8,0.025]
[1756995030066,1e-08,4343.8,4342.9,2.30260885]
[1756995030275,1e-08,4343.8,4342.8,0.025]
[1756995030434,0.1152,4343.3,4342.8,0.025]
[1756995030969,1e-08,4343.8,4342.8,0.025]
[1756995031170,0.1152,4343.1,4342.8,0.025]
[1756995031739,0.5446,4343.1,4342.8,0.025]
[1756995031960,0.4524024,4343.0,4342.8,0.025]
[1756995032169,0.0230024,4343.0,4342.8,0.025]
[1756995032342,0.1152,4342.9,4342.8,2.32766187]
[1756995032542,0.1152,4343.1,4342.8,0.025]
[1756995033185,1e-08,4343.8,4342.8,0.025]
[1756995033469,2.30260604,4343.0,4342.8,0.025]
[1756995033672,2.75501125,4342.9,4342.8,0.025]
[1756995033841,0.1152,4343.1,4342.8,0.025]
[1756995034178,2.41780885,4342.9,4342.8,0.025]
[1756995034543,0.525,4343.1,4342.8,0.025]
[1756995034755,0.52500001,4343.8,4343.0,2.3025051]
[1756995034952,1e-08,4343.8,4343.3,2.30235492]
[1756995035270,1e-08,4343.8,4343.2,2.30240102]
[1756995035462,1e-08,4343.8,4343.7,2.30218477]
[1756995036638,0.025,4344.8,4343.3,0.5076]
[1756995036639,2.30165618,4344.7,4343.3,0.5076]
[1756995036838,2.32474476,4344.6,4343.7,2.30213625]
[1756995037043,2.32472718,4344.6,4342.6,0.4556]
[1756995037271,2.30195819,4344.2,4343.0,2.30251853]
[1756995037475,2.63219486,4344.5,4342.8,0.52820193]
[1756995037637,5.04243272,4344.5,4342.8,0.52820193]
[1756995037855,2.30209659,4343.9,4343.0,2.30252966]
[1756995038077,0.0230024,4344.4,4342.8,0.029]
[1756995038078,0.0230024,4343.8,4342.8,0.029]
[1756995038582,2.79813699,4343.8,4342.9,2.30256379]
[1756995038877,2.30220144,4343.7,4342.9,2.30256032]
[1756995039063,2.32518904,4343.7,4342.8,2.33161085]
[1756995039376,1.697,4344.3,4343.3,2.30239465]
[1756995039541,2.30196314,4344.2,4343.3,2.30239019]
[1756995039743,0.33043272,4344.5,4342.8,0.05202661]
[1756995039943,0.0240024,4344.7,4342.9,3.26576866]
[1756995040175,0.001,4344.7,4343.1,2.30250282]
[1756995040374,0.001,4344.7,4343.5,0.792]
[1756995040559,0.001,4344.7,4344.6,2.30170786]
[1756995041165,0.001,4346.7,4344.7,2.30165488]
[1756995041342,0.0240024,4346.7,4344.8,0.32648549]
[1756995041546,2.3011782,4345.6,4342.8,0.029]
[1756995041762,0.525,4345.5,4343.6,2.30218854]
[1756995041957,3.0,4345.2,4342.9,0.4556]
[1756995042182,3.0,4345.0,4342.9,0.4556]
[1756995042394,0.7715,4345.1,4343.0,0.9632]
[1756995042595,3.0,4345.2,4343.0,0.5076]
[1756995042897,5.82652015,4345.0,4342.8,0.029]
[1756995043095,2.30166758,4344.7,4343.7,2.30213789]
[1756995043272,4.726,4344.9,4344.1,2.30193617]
[1756995043472,0.525,4346.0,4343.8,0.5076]
[1756995043671,0.4524024,4345.7,4344.3,2.30186328]
[1756995043886,2.30123595,4345.5,4344.3,2.30186328]
[1756995044072,0.9544,4346.5,4344.1,0.4556]
[1756995044276,0.0230024,4345.7,4343.8,0.5076]
[1756995044476,0.1152,4344.8,4343.4,2.1516]
[1756995044793,2.41685348,4344.8,4344.0,0.1152]
[1756995044994,0.1152,4344.8,4344.0,0.1152]
[1756995045205,0.1152,4344.8,4344.1,2.30197279]
[1756995045423,0.0230024,4344.7,4344.0,0.1152]
[1756995045768,2.32465982,4344.7,4344.0,0.1152]
[1756995045964,0.9544,4344.6,4343.8,0.025]
[1756995046266,2.41727877,4343.9,4343.8,0.025]
[1756995046491,0.1152,4343.9,4343.8,0.025]
[1756995047181,2.41727877,4343.9,4343.8,0.025]
[1756995047411,2.84667877,4343.9,4343.8,0.025]
[1756995048025,3.90954657,4343.9,4343.8,0.025]
[1756995048379,0.6300654,4343.9,4343.8,0.025]
[1756995048590,4.8372,4343.9,4343.8,0.025]
[1756995048800,7.13927877,4343.9,4343.8,0.025]
[1756995048998,4.8372,4343.9,4343.8,0.025]
[1756995049206,7.56867877,4343.9,4343.8,0.025]
[1756995049417,8.09367877,4343.9,4343.8,0.025]
[1756995049708,5.86776643,4343.9,4343.8,0.025]
[1756995050115,2.30132789,4345.4,4343.8,0.025]
[1756995050116,0.525,4345.3,4343.8,0.025]
[1756995050428,2.30148612,4345.1,4344.0,2.30197996]
[1756995050728,0.4294,4346.1,4343.8,0.9882]
[1756995050886,0.0480024,4345.8,4345.1,2.30142573]
[1756995051225,0.025,4345.8,4343.9,2.30207877]
[1756995051431,4.711,4345.7,4344.8,2.30157229]
[1756995051596,2.30118561,4345.6,4344.0,2.63101105]
[1756995051788,4.711,4345.7,4344.0,0.32902788]
[1756995051988,4.711,4345.7,4343.8,0.9882]
[1756995052207,0.025,4345.8,4343.9,0.4556]
[1756995052425,4.735,4345.8,4344.0,2.30202578]
[1756995052795,4.735,4345.8,4344.1,0.4556]
[1756995052996,0.025,4345.8,4344.3,2.30186681]
[1756995053222,0.025,4345.8,4345.6,2.30112929]
[1756995053436,0.025,4345.8,4344.4,1.28970668]
[1756995053437,0.025,4345.8,4344.5,2.30176084]
[1756995053611,0.025,4345.8,4345.7,2.30112525]
[1756995053790,0.025,4345.8,4344.5,2.30176084]
[1756995053988,0.025,4345.8,4345.6,0.5076]
[1756995054220,0.001,4346.7,4345.6,0.5076]
[1756995054422,0.001,4347.3,4347.2,2.30033124]
[1756995054869,0.001,4347.3,4347.2,3.72360684]
[1756995055922,0.001,4347.3,4347.2,2.76040684]
[1756995056121,0.001,4347.3,4346.4,0.9632]
[1756995056622,0.001,4347.3,4345.7,2.2036]
[1756995056848,0.001,4347.3,4345.7,0.5076]
[1756995057023,0.001,4346.7,4345.0,0.5076]
[1756995057222,0.001,4346.7,4345.2,2.30139003]
[1756995057425,0.001,4346.7,4345.1,0.74453443]
[1756995057622,0.001,4346.7,4345.1,0.72152]
[1756995057834,0.001,4346.7,4345.1,0.4556]
[1756995058046,0.001,4346.7,4345.2,2.30139003]
[1756995058243,0.001,4346.7,4345.1,0.4556]
[1756995058964,0.001,4346.7,4345.2,0.5076]
[1756995059169,0.001,4346.7,4346.4,2.30074218]
[1756995059328,0.001,4346.7,4345.3,4.673]
[1756995059524,2.30077171,4346.4,4345.2,0.5076]
[1756995059726,2.55393279,4346.3,4344.9,1.696]
[1756995059948,0.25307957,4346.3,4345.1,2.30139051]
[1756995060160,0.25307957,4346.3,4344.9,3.99753009]
[1756995060161,0.1152,4345.9,4344.9,1.696]
[1756995060363,0.1152,4345.9,4345.0,0.1152]
[1756995060543,0.1152,4345.9,4345.1,2.3014327]
[1756995060861,0.1152,4345.9,4345.1,2.301443]
[1756995061161,0.1152,4345.4,4344.1,1.696]
[1756995061348,2.54298568,4345.3,4344.3,0.1152]
[1756995061554,0.1152,4344.9,4344.3,0.1152]
[1756995061744,2.43975134,4344.9,4344.0,2.30601858]
[1756995062070,0.441,4345.6,4344.4,2.30180003]
[1756995062231,0.1152,4344.9,4344.1,2.30196271]
[1756995063768,1.696,4345.8,4344.8,0.025]
[1756995064088,0.1152,4345.1,4344.8,0.025]
[1756995064230,2.74254894,4344.9,4344.8,0.025]
[1756995064436,6.23024894,4344.9,4344.8,0.025]
[1756995064629,6.23024894,4344.9,4344.0,0.004]
[1756995064630,2.30197279,4344.1,4344.0,0.004]
[1756995064830,0.1152,4344.1,4344.0,0.004]
[1756995065057,2.44017519,4344.1,4344.0,0.004]
[1756995065262,4.77798021,4344.1,4344.0,0.004]
[1756995065475,4.75497781,4344.1,4344.0,0.004]
[1756995066485,0.1152,4344.1,4344.0,0.004]
[1756995066635,2.137,4344.9,4344.0,0.004]
[1756995066636,0.0230024,4344.8,4344.0,0.004]
[1756995066842,0.1152,4344.4,4344.0,0.004]
[1756995067067,0.441,4345.1,4344.0,0.004]
[1756995067274,0.1152,4344.1,4344.0,0.004]
[1756995067457,4.641,4345.6,4344.2,2.30189672]
[1756995067649,0.6106,4345.8,4344.3,2.32485739]
[1756995067868,0.1152,4345.0,4344.3,0.4934]
[1756995068073,0.1152,4345.0,4344.5,2.41693727]
[1756995068259,0.0230024,4345.6,4344.9,2.30154894]
[1756995068468,0.1152,4345.2,4344.6,0.9628]
[1756995068952,0.1152,4345.5,4344.9,0.1152]
[1756995069147,0.1152,4345.5,4345.4,2.30128411]
[1756995069866,0.025,4345.8,4345.7,2.30112525]
[1756995070369,0.025,4345.8,4345.7,3.26392525]
[1756995070585,0.025,4345.8,4345.7,3.82044089]
[1756995070760,0.025,4345.8,4345.7,2.30112525]
[1756995070960,0.025,4345.8,4345.1,0.4934]
[1756995071597,0.025,4345.8,4345.2,2.30139003]
[1756995071886,2.3011889,4345.6,4344.5,1.696]
[1756995072199,2.3011889,4345.6,4344.4,2.30177838]
[1756995072200,2.30122924,4345.6,4344.2,0.4934]
[1756995072404,0.0480024,4345.8,4344.2,0.4934]
[1756995072405,2.53616529,4345.5,4344.2,0.4934]
[1756995072687,0.23492316,4345.5,4344.2,0.4934]
[1756995072889,0.0230024,4345.4,4343.8,0.025]
[1756995073203,2.30144439,4345.1,4343.8,0.025]
[1756995073407,0.025,4345.8,4344.1,0.4934]
[1756995073709,0.025,4345.8,4344.4,0.792]
[1756995073883,0.025,4345.8,4344.6,0.792]
[1756995074059,0.025,4345.8,4345.5,2.30118772]
[1756995074257,0.025,4345.8,4345.4,2.30128389]
[1756995074615,0.025,4345.8,4344.7,0.5409]
[1756995074759,0.025,4345.8,4344.5,0.9628]
[1756995074958,0.025,4345.8,4345.3,2.3013251]
[1756995075194,0.025,4345.8,4345.5,2.3012211]
[1756995075517,0.025,4345.8,4345.1,0.4934]
[1756995075655,0.025,4345.8,4345.5,2.30117844]
[1756995075969,0.025,4345.8,4344.6,0.004]
[1756995076404,2.30128148,4345.5,4344.6,0.004]
[1756995076704,0.025,4345.8,4345.0,2.30144325]
[1756995076908,0.025,4345.8,4345.4,2.30124111]
[1756995077115,0.025,4345.8,4344.7,0.9628]
[1756995077316,0.025,4345.8,4344.8,0.32684957]
[1756995077816,0.025,4345.8,4345.4,2.30125364]
[1756995078017,0.025,4345.8,4344.7,0.9628]
[1756995078314,0.025,4345.8,4345.7,2.30112525]
[1756995079069,0.025,4345.8,4345.7,3.26392525]
[1756995079773,0.025,4345.8,4345.7,4.05592525]
[1756995079973,0.025,4345.8,4345.7,4.809139]
[1756995081172,0.025,4345.8,4345.7,4.017139]
[1756995081401,0.025,4345.8,4345.7,8.63315025]
[1756995081583,0.025,4345.8,4345.7,9.402139]
[1756995082110,0.001,4345.9,4345.8,3.09307229]
[1756995082294,0.001,4345.9,4345.8,5.21047014]
[1756995082501,0.001,4345.9,4345.8,8.21047014]
[1756995082822,0.001,4346.7,4346.0,0.792]
[1756995083101,0.025,4347.8,4345.9,3.0]
[1756995083102,0.025,4347.8,4347.2,3.09233124]
[1756995083269,0.025,4347.8,4347.2,4.11053124]
[1756995083469,0.025,4347.8,4347.2,4.34106816]
[1756995084106,0.025,4347.8,4347.0,2.30038851]
[1756995084298,0.1152,4347.7,4347.1,2.41557874]
[1756995084627,0.025,4347.8,4347.1,0.1152]
[1756995084916,0.025,4347.8,4347.2,8.75933124]
[1756995086506,1e-08,4347.8,4347.2,11.75933124]
[1756995086837,1e-08,4347.8,4347.7,3.0920667]
[1756995086972,1e-08,4347.8,4347.7,3.2072667]
[1756995087181,1e-08,4347.8,4347.7,4.1700667]
[1756995087602,0.02520001,4348.8,4348.7,2.29953779]
[1756995087913,0.02520001,4348.8,4348.7,6.99673779]
[1756995088289,0.02520001,4348.8,4348.7,9.68117297]
[1756995089180,0.02520001,4348.8,4348.7,8.71837297]
[1756995089518,0.02520001,4348.8,4348.7,9.68117297]
[1756995090222,0.02520001,4348.8,4348.7,0.92963518]
[1756995090523,0.02520001,4348.8,4346.6,2.30062837]
[1756995090524,2.29963942,4348.6,4347.6,2.30008477]
[1756995090725,3.24329688,4348.8,4346.3,1.695]
[1756995090726,0.45680001,4348.8,4347.7,0.02300066]
[1756995091035,0.45680001,4348.8,4346.3,1.695]
[1756995091036,0.9416024,4348.7,4346.3,1.695]
[1756995091238,0.9186,4348.6,4346.4,3.965]
[1756995091453,2.29969644,4348.4,4346.5,0.61669]
[1756995091597,0.3243337,4348.5,4347.5,2.30015686]
[1756995091926,0.3243337,4348.5,4347.9,2.29993482]
[1756995092129,0.9186,4348.6,4347.2,0.792]
[1756995092315,2.2996957,4348.5,4347.1,4.572]
[1756995092621,0.9186,4348.6,4346.8,0.025]
[1756995092622,0.9186,4348.6,4347.4,2.30022542]
[1756995092925,3.2182031,4348.6,4347.3,0.792]
[1756995093100,0.9186,4348.6,4347.3,0.792]
[1756995093418,0.9186,4348.6,4347.9,2.29992196]
[1756995093621,0.9186,4348.6,4347.5,2.30017003]
[1756995093813,0.02520001,4348.8,4348.3,2.29970396]
[1756995094004,0.02520001,4348.8,4347.9,2.2999609]
[1756995094204,0.02520001,4348.8,4347.8,4.562]
[1756995094601,0.68926397,4348.8,4347.5,4.562]
[1756995094790,0.68926397,4348.8,4347.5,2.30017251]
[1756995094791,0.487,4348.7,4347.5,2.30017251]
[1756995095002,0.487,4348.7,4347.8,2.30001281]
[1756995095225,0.487,4348.7,4348.1,2.29985139]
[1756995095422,0.487,4348.7,4347.9,2.29992799]
[1756995095623,0.0230024,4348.6,4347.4,4.56]
[1756995095823,0.487,4348.7,4347.5,0.02300172]
[1756995096029,2.29961216,4348.6,4347.8,2.29996407]
[1756995096224,2.29968257,4348.5,4347.4,5.1855]
[1756995096412,0.5100024,4348.7,4347.4,5.1855]
[1756995096615,2.29982287,4348.2,4347.3,1.695]
[1756995096819,2.29976171,4348.3,4347.3,3.99526968]
[1756995097015,2.29976171,4348.3,4346.8,0.025]
[1756995097016,0.9186,4348.2,4346.8,0.025]
[1756995097313,3.21843442,4348.2,4346.8,0.025]
[1756995097535,0.62184344,4348.1,4347.0,2.30041943]
[1756995097708,3.9416024,4348.2,4347.1,2.30034104]
[1756995097908,0.9186,4348.2,4346.8,0.025]
[1756995098159,0.9186,4348.2,4347.7,2.30005396]
[1756995098364,0.9186,4348.2,4347.6,2.30011292]
[1756995098662,7.59531472,4349.2,4347.6,2.30011292]
[1756995098663,0.4316,4350.2,4347.8,0.792]
[1756995098815,0.4316,4349.6,4348.7,2.29953779]
[1756995099020,0.4316,4349.6,4348.6,2.29958429]
[1756995099246,0.0230024,4349.5,4348.7,2.29953779]
[1756995099424,0.4316,4349.6,4348.7,2.29953779]
[1756995099626,0.05,4349.8,4348.7,3.11453316]
[1756995099828,0.05,4349.8,4348.7,4.61855045]
[1756995100032,0.05,4349.8,4348.7,4.59555508]
[1756995100218,0.05,4349.8,4349.2,3.09127342]
[1756995100419,0.05,4349.8,4349.2,7.64627342]
[1756995100618,0.05,4349.8,4349.2,8.72407342]
[1756995100918,0.05,4349.8,4349.2,9.97579336]
[1756995101952,1e-08,4349.8,4349.7,6.09100912]
[1756995102255,1e-08,4349.8,4349.7,23.30738182]
[1756995102422,1e-08,4349.8,4349.7,28.82398182]
[1756995103565,1e-08,4349.8,4349.7,13.41680912]
[1756995103864,1e-08,4349.8,4349.7,13.64682041]
[1756995106166,1e-08,4349.8,4349.7,2.03921129]
[1756995106344,1e-08,4349.8,4349.7,0.1152]
[1756995106967,1e-08,4349.8,4349.1,4.553]
[1756995106968,0.91860001,4349.8,4349.1,4.553]
[1756995107169,1e-08,4349.8,4349.1,4.553]
[1756995107371,1e-08,4349.8,4349.7,2.41420912]
[1756995107569,1e-08,4349.8,4349.7,0.1152]
[1756995107742,1e-08,4349.8,4349.7,2.41420912]
[1756995108143,1e-08,4349.8,4349.7,0.1152]
[1756995108369,1e-08,4349.8,4349.7,7.78119921]
[1756995108546,1e-08,4349.8,4349.7,8.7662403]
[1756995109563,1e-08,4349.8,4349.7,7.9742403]
[1756995109752,1e-08,4349.8,4349.7,5.67523118]
[1756995110075,0.43160001,4349.8,4349.7,4.552]
[1756995110370,1e-08,4349.8,4349.7,6.85100912]
[1756995110572,1e-08,4349.8,4349.7,6.96620912]
[1756995110759,1e-08,4349.8,4349.7,7.75820912]
[1756995110961,1e-08,4349.8,4349.7,6.96620912]
[1756995112277,1e-08,4349.8,4349.7,7.75820912]
[1756995112477,1e-08,4349.8,4349.7,8.76393911]
[1756995113174,0.00020001,4350.3,4349.7,6.34972999]